[Event "FIDE World Rapid Chess Championship 2021"]
[White "Sarana, Alexey"]
[Black "Gajewski, Grzegorz"]
[WhiteFideId "24133795"]
[BlackFideId "1116207"]
[WhiteElo "2680"]
[BlackElo "2496"]
[Result "1-0"]
[Round "02"]
[TimeControl "900+10"]
[Date "2021.12.26"]
[WhiteClock "0:03:10"]
[BlackClock "0:01:26"]

1. d4 {[%clk 0:15:19]}  Nf6 {[%clk 0:15:19]} 2. c4 {[%clk 0:15:28]}  e6 {[%clk 0:15:27]} 3. Nc3 {[%clk 0:15:36]}  Bb4 {[%clk 0:15:36]} 4. e3 {[%clk 0:15:45]}  O-O {[%clk 0:15:43]} 5. Bd3 {[%clk 0:15:54]}  d5 {[%clk 0:15:43]} 6. a3 {[%clk 0:16:02]}  Bxc3+ {[%clk 0:15:49]} 7. bxc3 {[%clk 0:16:11]}  dxc4 {[%clk 0:15:51]} 8. Bxc4 {[%clk 0:16:20]}  c5 {[%clk 0:16:00]} 9. Ne2 {[%clk 0:16:28]}  Qc7 {[%clk 0:16:08]} 10. Bd3 {[%clk 0:16:37]}  Nc6 {[%clk 0:16:03]} 11. O-O {[%clk 0:16:44]}  e5 {[%clk 0:16:05]} 12. Ng3 {[%clk 0:16:53]}  Re8 {[%clk 0:15:32]} 13. f4 {[%clk 0:15:53]}  e4 {[%clk 0:15:23]} 14. Be2 {[%clk 0:14:13]}  Na5 {[%clk 0:14:40]} 15. f5 {[%clk 0:13:09]}  b6 {[%clk 0:14:01]} 16. Bd2 {[%clk 0:12:51]}  Bb7 {[%clk 0:12:47]} 17. c4 {[%clk 0:12:04]}  cxd4 {[%clk 0:12:41]} 18. Bxa5 {[%clk 0:12:12]}  bxa5 {[%clk 0:12:07]} 19. exd4 {[%clk 0:12:19]}  Rad8 {[%clk 0:12:03]} 20. d5 {[%clk 0:12:26]}  Qc5+ {[%clk 0:12:05]} 21. Kh1 {[%clk 0:12:34]}  Ba6 {[%clk 0:11:40]} 22. Rc1 {[%clk 0:12:14]}  Rb8 {[%clk 0:10:50]} 23. Qa4 {[%clk 0:11:16]}  Kf8 {[%clk 0:09:41]} 24. Nh5 {[%clk 0:11:16]}  Nxh5 {[%clk 0:09:08]} 25. Bxh5 {[%clk 0:09:53]}  Rb6 {[%clk 0:09:15]} 26. h3 {[%clk 0:06:57]}  e3 {[%clk 0:08:50]} 27. f6 {[%clk 0:06:32]}  gxf6 {[%clk 0:07:48]} 28. Qc2 {[%clk 0:06:23]}  Kg7 {[%clk 0:07:28]} 29. Rf4 {[%clk 0:06:01]}  Re5 {[%clk 0:07:05]} 30. Rg4+ {[%clk 0:05:18]}  Rg5 {[%clk 0:07:06]} 31. Rxg5+ {[%clk 0:04:04]}  fxg5 {[%clk 0:07:14]} 32. Qf5 {[%clk 0:04:12]}  f6 {[%clk 0:06:45]} 33. Qd7+ {[%clk 0:03:24]}  Kh6 {[%clk 0:06:54]} 34. Be2 {[%clk 0:03:21]}  Qd4 {[%clk 0:06:54]} 35. Qxa7 {[%clk 0:02:55]}  Qb2 {[%clk 0:03:41]} 36. Re1 {[%clk 0:03:04]}  Qd2 {[%clk 0:04:27]} 37. Rg1 {[%clk 0:02:55]}  Rd6 {[%clk 0:01:50]} 38. Qe7 {[%clk 0:03:10]}  Rb6 {[%clk 0:01:26]} 39. c5 {[%clk 0:03:10]} 1-0


[Site "http://www.Chess.com"]

[Event "FIDE World Rapid Chess Championship 2021"]
[White "Svane, Rasmus"]
[Black "Janik, Igor"]
[WhiteFideId "4657101"]
[BlackFideId "1159259"]
[WhiteElo "2677"]
[BlackElo "2462"]
[Result "1-0"]
[Round "02"]
[TimeControl "900+10"]
[Date "2021.12.26"]
[WhiteClock "0:01:12"]
[BlackClock "0:00:26"]

1. Nf3 {[%clk 0:15:17]}  Nf6 {[%clk 0:15:17]} 2. g3 {[%clk 0:15:25]}  g6 {[%clk 0:15:21]} 3. Bg2 {[%clk 0:15:32]}  d5 {[%clk 0:15:30]} 4. c4 {[%clk 0:15:05]}  c6 {[%clk 0:15:37]} 5. b3 {[%clk 0:15:05]}  Bg7 {[%clk 0:15:46]} 6. Bb2 {[%clk 0:15:13]}  O-O {[%clk 0:15:54]} 7. O-O {[%clk 0:15:20]}  Bg4 {[%clk 0:16:02]} 8. d3 {[%clk 0:15:14]}  Nbd7 {[%clk 0:15:56]} 9. h3 {[%clk 0:14:43]}  Bxf3 {[%clk 0:16:04]} 10. Bxf3 {[%clk 0:14:51]}  a5 {[%clk 0:16:13]} 11. a3 {[%clk 0:14:04]}  e6 {[%clk 0:16:17]} 12. Nd2 {[%clk 0:13:41]}  Qb6 {[%clk 0:15:49]} 13. Qc2 {[%clk 0:13:38]}  Rfc8 {[%clk 0:15:31]} 14. Rfc1 {[%clk 0:13:41]}  Ne8 {[%clk 0:15:07]} 15. Bxg7 {[%clk 0:13:37]}  Nxg7 {[%clk 0:15:15]} 16. Rab1 {[%clk 0:12:26]}  Nf5 {[%clk 0:15:03]} 17. e3 {[%clk 0:11:20]}  Qd8 {[%clk 0:15:03]} 18. Bg2 {[%clk 0:11:02]}  h5 {[%clk 0:13:31]} 19. Qc3 {[%clk 0:10:14]}  Qe7 {[%clk 0:11:57]} 20. b4 {[%clk 0:10:10]}  axb4 {[%clk 0:11:58]} 21. axb4 {[%clk 0:10:19]}  Qd6 {[%clk 0:09:58]} 22. Nb3 {[%clk 0:09:16]}  Ra2 {[%clk 0:09:11]} 23. c5 {[%clk 0:08:47]}  Qc7 {[%clk 0:08:42]} 24. Rc2 {[%clk 0:08:38]}  Rca8 {[%clk 0:08:27]} 25. Qd2 {[%clk 0:06:24]}  R2a3 {[%clk 0:06:12]} 26. Na5 {[%clk 0:06:25]}  Ne5 {[%clk 0:06:05]} 27. Rc3 {[%clk 0:06:01]}  Rxc3 {[%clk 0:06:12]} 28. Qxc3 {[%clk 0:06:09]}  g5 {[%clk 0:04:58]} 29. e4 {[%clk 0:05:26]}  dxe4 {[%clk 0:04:54]} 30. dxe4 {[%clk 0:05:29]}  Ng7 {[%clk 0:05:04]} 31. Nxb7 {[%clk 0:04:57]}  h4 {[%clk 0:04:37]} 32. Nd6 {[%clk 0:06:09]}  Ng6 {[%clk 0:04:58]} 33. b5 {[%clk 0:04:08]}  hxg3 {[%clk 0:04:06]} 34. fxg3 {[%clk 0:04:50]}  cxb5 {[%clk 0:03:46]} 35. Rxb5 {[%clk 0:04:19]}  Rb8 {[%clk 0:03:51]} 36. Rxb8+ {[%clk 0:04:50]}  Qxb8 {[%clk 0:03:57]} 37. Qf6 {[%clk 0:02:50]}  Qa7 {[%clk 0:03:57]} 38. Qxg5 {[%clk 0:03:23]}  f6 {[%clk 0:01:41]} 39. Qc1 {[%clk 0:02:56]}  Ne5 {[%clk 0:01:47]} 40. Kh2 {[%clk 0:02:56]}  Nh5 {[%clk 0:01:28]} 41. Qc3 {[%clk 0:01:05]}  Kf8 {[%clk 0:01:28]} 42. Nb5 {[%clk 0:01:05]}  Qa6 {[%clk 0:01:28]} 43. Nd4 {[%clk 0:01:05]}  Ke7 {[%clk 0:01:28]} 44. c6 {[%clk 0:01:05]}  Qc8 {[%clk 0:01:28]} 45. Qc5+ {[%clk 0:01:05]}  Kf7 {[%clk 0:01:28]} 46. Qa7+ {[%clk 0:01:05]}  Kg6 {[%clk 0:01:28]} 47. c7 {[%clk 0:01:12]}  Qd7 {[%clk 0:00:26]} 48. Qc5 {[%clk 0:01:12]}  Qc8 {[%clk 0:00:26]} 49. Qd6 {[%clk 0:01:12]}  Nf7 {[%clk 0:00:26]} 50. Qe7 {[%clk 0:01:12]}  Qb7 {[%clk 0:00:26]} 51. Nxe6 {[%clk 0:01:12]}  Qb3 {[%clk 0:00:26]} 52. Nf4+ {[%clk 0:01:12]}  Nxf4 {[%clk 0:00:26]} 53. gxf4 {[%clk 0:01:12]}  Qc3 {[%clk 0:00:26]} 54. Qd7 {[%clk 0:01:12]} 1-0


[Site "http://www.Chess.com"]

[Event "FIDE World Rapid Chess Championship 2021"]
[White "Sadhwani, Raunak"]
[Black "Paravyan, David"]
[WhiteFideId "35093487"]
[BlackFideId "4194985"]
[WhiteElo "2454"]
[BlackElo "2671"]
[Result "0-1"]
[Round "02"]
[TimeControl "900+10"]
[Date "2021.12.26"]
[WhiteClock "0:01:36"]
[BlackClock "0:00:55"]

1. c4 {[%clk 0:15:19]}  Nf6 {[%clk 0:15:13]} 2. Nf3 {[%clk 0:15:13]}  c5 {[%clk 0:15:22]} 3. Nc3 {[%clk 0:15:18]}  d5 {[%clk 0:15:28]} 4. cxd5 {[%clk 0:15:24]}  Nxd5 {[%clk 0:15:37]} 5. g3 {[%clk 0:14:48]}  Nc6 {[%clk 0:15:30]} 6. Bg2 {[%clk 0:14:55]}  Nc7 {[%clk 0:15:36]} 7. O-O {[%clk 0:15:02]}  e5 {[%clk 0:15:01]} 8. a3 {[%clk 0:15:11]}  Bd7 {[%clk 0:14:59]} 9. Rb1 {[%clk 0:15:04]}  a5 {[%clk 0:14:36]} 10. d3 {[%clk 0:14:50]}  Be7 {[%clk 0:14:44]} 11. Be3 {[%clk 0:14:38]}  O-O {[%clk 0:14:35]} 12. Rc1 {[%clk 0:13:53]}  Rb8 {[%clk 0:11:49]} 13. Nd2 {[%clk 0:13:42]}  b6 {[%clk 0:09:21]} 14. Nc4 {[%clk 0:13:42]}  Re8 {[%clk 0:07:08]} 15. f4 {[%clk 0:13:25]}  Bf8 {[%clk 0:06:40]} 16. fxe5 {[%clk 0:11:59]}  Nxe5 {[%clk 0:06:25]} 17. Nxe5 {[%clk 0:12:05]}  Rxe5 {[%clk 0:06:33]} 18. Bf4 {[%clk 0:12:13]}  Re6 {[%clk 0:06:40]} 19. Qb3 {[%clk 0:11:30]}  a4 {[%clk 0:05:25]} 20. Qa2 {[%clk 0:10:04]}  Rc8 {[%clk 0:03:52]} 21. Rf2 {[%clk 0:08:16]}  Nb5 {[%clk 0:03:09]} 22. Nxb5 {[%clk 0:07:47]}  Bxb5 {[%clk 0:03:17]} 23. Bd5 {[%clk 0:07:24]}  Bd7 {[%clk 0:03:12]} 24. Rcf1 {[%clk 0:07:01]}  c4 {[%clk 0:01:39]} 25. d4 {[%clk 0:05:51]}  b5 {[%clk 0:00:44]} 26. Qb1 {[%clk 0:03:24]}  Qb6 {[%clk 0:00:33]} 27. e3 {[%clk 0:03:19]}  Rf6 {[%clk 0:00:19]} 28. Be5 {[%clk 0:03:24]}  Rxf2 {[%clk 0:00:33]} 29. Rxf2 {[%clk 0:03:24]}  Be6 {[%clk 0:00:33]} 30. Be4 {[%clk 0:03:24]}  g6 {[%clk 0:00:33]} 31. Bf6 {[%clk 0:03:24]}  Re8 {[%clk 0:00:23]} 32. Bg2 {[%clk 0:02:25]}  Qd6 {[%clk 0:00:14]} 33. Be5 {[%clk 0:01:47]}  Qd7 {[%clk 0:00:18]} 34. e4 {[%clk 0:02:25]}  Bh3 {[%clk 0:00:23]} 35. Bxh3 {[%clk 0:02:25]}  Qxh3 {[%clk 0:00:23]} 36. Qd1 {[%clk 0:02:25]}  Qd7 {[%clk 0:00:33]} 37. Qf3 {[%clk 0:02:25]}  Rxe5 {[%clk 0:00:23]} 38. dxe5 {[%clk 0:02:25]}  Bc5 {[%clk 0:00:23]} 39. Qf6 {[%clk 0:01:46]}  h5 {[%clk 0:00:44]} 40. Kg2 {[%clk 0:01:46]}  Bxf2 {[%clk 0:00:44]} 41. Qxf2 {[%clk 0:01:46]}  Qd3 {[%clk 0:00:44]} 42. Qf4 {[%clk 0:01:46]}  Qe2+ {[%clk 0:00:44]} 43. Kg1 {[%clk 0:01:46]}  Qxb2 {[%clk 0:00:44]} 44. e6 {[%clk 0:01:46]}  fxe6 {[%clk 0:00:44]} 45. Qb8+ {[%clk 0:01:46]}  Kh7 {[%clk 0:00:44]} 46. e5 {[%clk 0:01:46]}  Qc1+ {[%clk 0:00:52]} 47. Kg2 {[%clk 0:00:50]}  Qc2+ {[%clk 0:00:52]} 48. Kg1 {[%clk 0:00:50]}  Qd1+ {[%clk 0:00:52]} 49. Kg2 {[%clk 0:00:50]}  Qd2+ {[%clk 0:00:52]} 50. Kh3 {[%clk 0:00:50]}  Qd7 {[%clk 0:00:52]} 51. Qd6 {[%clk 0:00:50]}  Qf7 {[%clk 0:00:52]} 52. Qc5 {[%clk 0:00:50]}  Kh6 {[%clk 0:00:52]} 53. Kg2 {[%clk 0:00:50]}  Qb7+ {[%clk 0:00:52]} 54. Kf2 {[%clk 0:00:50]}  Kg7 {[%clk 0:00:52]} 55. h4 {[%clk 0:00:50]}  Kf7 {[%clk 0:00:52]} 56. Ke2 {[%clk 0:01:45]}  Qd7 {[%clk 0:00:34]} 57. Ke3 {[%clk 0:01:45]}  g5 {[%clk 0:00:34]} 58. hxg5 {[%clk 0:01:45]}  Kg6 {[%clk 0:00:34]} 59. Qd6 {[%clk 0:01:45]}  Qe8 {[%clk 0:00:34]} 60. Qd2 {[%clk 0:01:45]}  Qe7 {[%clk 0:00:34]} 61. Qd6 {[%clk 0:01:45]}  Qxg5+ {[%clk 0:00:34]} 62. Kd4 {[%clk 0:01:45]}  Kf5 {[%clk 0:00:20]} 63. Kc5 {[%clk 0:01:45]}  Qxg3 {[%clk 0:00:34]} 64. Qf8+ {[%clk 0:01:45]}  Ke4 {[%clk 0:00:20]} 65. Qa8+ {[%clk 0:01:36]}  Kd3 {[%clk 0:00:34]} 66. Qd8+ {[%clk 0:01:36]}  Kc2 {[%clk 0:00:22]} 67. Qd6 {[%clk 0:01:27]}  Qxa3+ {[%clk 0:00:27]} 68. Kc6 {[%clk 0:01:36]}  Qf3+ {[%clk 0:00:27]} 69. Kxb5 {[%clk 0:01:44]}  Qb3+ {[%clk 0:00:43]} 70. Kc6 {[%clk 0:01:36]}  c3 {[%clk 0:00:27]} 71. Qd4 {[%clk 0:01:36]}  a3 {[%clk 0:00:55]} 0-1


[Site "http://www.Chess.com"]

[Event "FIDE World Rapid Chess Championship 2021"]
[White "Kantor, Gergely"]
[Black "Demchenko, Anton"]
[WhiteFideId "751499"]
[BlackFideId "4160258"]
[WhiteElo "2454"]
[BlackElo "2666"]
[Result "1/2-1/2"]
[Round "02"]
[TimeControl "900+10"]
[Date "2021.12.26"]
[WhiteClock "0:00:25"]
[BlackClock "0:00:34"]

1. d4 {[%clk 0:15:19]}  Nf6 {[%clk 0:15:18]} 2. c4 {[%clk 0:15:28]}  g6 {[%clk 0:15:25]} 3. Nc3 {[%clk 0:15:36]}  Bg7 {[%clk 0:15:34]} 4. e4 {[%clk 0:15:45]}  d6 {[%clk 0:15:43]} 5. Be2 {[%clk 0:15:54]}  Nbd7 {[%clk 0:15:51]} 6. Nf3 {[%clk 0:15:38]}  O-O {[%clk 0:15:59]} 7. O-O {[%clk 0:15:34]}  e5 {[%clk 0:16:08]} 8. Be3 {[%clk 0:15:06]}  c6 {[%clk 0:16:15]} 9. d5 {[%clk 0:15:08]}  Qe7 {[%clk 0:16:23]} 10. Nd2 {[%clk 0:15:05]}  h5 {[%clk 0:16:27]} 11. h3 {[%clk 0:14:22]}  c5 {[%clk 0:15:40]} 12. a3 {[%clk 0:14:20]}  b6 {[%clk 0:13:04]} 13. b4 {[%clk 0:13:58]}  Ne8 {[%clk 0:13:11]} 14. bxc5 {[%clk 0:12:50]}  Nxc5 {[%clk 0:12:53]} 15. Nb3 {[%clk 0:12:57]}  f5 {[%clk 0:11:45]} 16. Nxc5 {[%clk 0:12:02]}  bxc5 {[%clk 0:11:48]} 17. exf5 {[%clk 0:12:04]}  gxf5 {[%clk 0:11:39]} 18. Bxh5 {[%clk 0:12:12]}  f4 {[%clk 0:07:16]} 19. Bd2 {[%clk 0:11:55]}  Bf5 {[%clk 0:07:20]} 20. Bg4 {[%clk 0:10:42]}  Bh7 {[%clk 0:07:11]} 21. Re1 {[%clk 0:10:14]}  Nf6 {[%clk 0:06:23]} 22. Be6+ {[%clk 0:09:33]}  Kh8 {[%clk 0:06:31]} 23. g4 {[%clk 0:10:14]}  fxg3 {[%clk 0:05:39]} 24. fxg3 {[%clk 0:09:22]}  Rab8 {[%clk 0:05:35]} 25. Bg5 {[%clk 0:08:38]}  Qe8 {[%clk 0:05:41]} 26. Nb5 {[%clk 0:08:20]}  Qg6 {[%clk 0:05:20]} 27. h4 {[%clk 0:07:29]}  Ne4 {[%clk 0:04:11]} 28. Qg4 {[%clk 0:07:29]}  a6 {[%clk 0:04:11]} 29. Rxe4 {[%clk 0:05:13]}  axb5 {[%clk 0:03:51]} 30. Rae1 {[%clk 0:05:19]}  Bf6 {[%clk 0:03:03]} 31. cxb5 {[%clk 0:04:29]}  Bxg5 {[%clk 0:03:03]} 32. hxg5 {[%clk 0:05:19]}  Rxb5 {[%clk 0:03:03]} 33. R4e2 {[%clk 0:05:19]}  Rb3 {[%clk 0:02:58]} 34. Rh2 {[%clk 0:03:14]}  Rff3 {[%clk 0:02:45]} 35. Kh1 {[%clk 0:04:04]}  Rbe3 {[%clk 0:02:45]} 36. Rg1 {[%clk 0:01:55]}  Kg7 {[%clk 0:01:15]} 37. Rh6 {[%clk 0:02:26]}  Qe4 {[%clk 0:01:12]} 38. Qxe4 {[%clk 0:00:43]}  Bxe4 {[%clk 0:01:12]} 39. Kh2 {[%clk 0:00:43]}  Rxa3 {[%clk 0:01:12]} 40. Re1 {[%clk 0:00:43]}  Rfe3 {[%clk 0:01:12]} 41. Rxe3 {[%clk 0:00:43]}  Rxe3 {[%clk 0:01:12]} 42. Rf6 {[%clk 0:00:43]}  c4 {[%clk 0:01:12]} 43. Kh3 {[%clk 0:00:43]}  c3 {[%clk 0:01:12]} 44. Rf7+ {[%clk 0:00:25]}  Kg6 {[%clk 0:00:34]} 45. Kg4 {[%clk 0:00:25]}  Bf3+ {[%clk 0:00:34]} 46. Kh4 {[%clk 0:00:25]}  c2 {[%clk 0:00:34]} 47. Rf6+ {[%clk 0:00:25]}  Kg7 {[%clk 0:00:34]} 48. Rf7+ {[%clk 0:00:25]}  Kg6 {[%clk 0:00:34]} 49. Rf6+ {[%clk 0:00:25]}  Kg7 {[%clk 0:00:34]} 50. Rf7+ {[%clk 0:00:25]} 1/2-1/2


[Site "http://www.Chess.com"]

[Event "FIDE World Rapid Chess Championship 2021"]
[White "Martirosyan, Haik M."]
[Black "Firouzja, Alireza"]
[WhiteFideId "13306553"]
[BlackFideId "12573981"]
[WhiteElo "2377"]
[BlackElo "2656"]
[Result "0-1"]
[Round "02"]
[TimeControl "900+10"]
[Date "2021.12.26"]
[WhiteClock "0:00:29"]
[BlackClock "0:00:28"]

1. d4 {[%clk 0:15:19]}  Nf6 {[%clk 0:15:19]} 2. c4 {[%clk 0:15:27]}  g6 {[%clk 0:15:27]} 3. Nf3 {[%clk 0:15:35]}  Bg7 {[%clk 0:15:33]} 4. g3 {[%clk 0:15:43]}  O-O {[%clk 0:15:28]} 5. Bg2 {[%clk 0:15:52]}  d5 {[%clk 0:15:07]} 6. cxd5 {[%clk 0:15:54]}  Nxd5 {[%clk 0:15:14]} 7. O-O {[%clk 0:15:52]}  Nb6 {[%clk 0:15:06]} 8. Nc3 {[%clk 0:15:27]}  Nc6 {[%clk 0:15:13]} 9. d5 {[%clk 0:15:09]}  Na5 {[%clk 0:15:19]} 10. Qc2 {[%clk 0:15:08]}  Nxd5 {[%clk 0:13:45]} 11. Rd1 {[%clk 0:14:24]}  c6 {[%clk 0:13:29]} 12. e4 {[%clk 0:14:13]}  Nb4 {[%clk 0:12:36]} 13. Qa4 {[%clk 0:14:15]}  b5 {[%clk 0:05:53]} 14. Qxb4 {[%clk 0:08:28]}  Bxc3 {[%clk 0:06:00]} 15. Qxc3 {[%clk 0:08:19]}  Qxd1+ {[%clk 0:06:08]} 16. Ne1 {[%clk 0:08:26]}  b4 {[%clk 0:05:57]} 17. Qxb4 {[%clk 0:08:28]}  Nb7 {[%clk 0:05:35]} 18. Bf3 {[%clk 0:02:36]}  c5 {[%clk 0:05:35]} 19. Qc3 {[%clk 0:08:28]}  Qd4 {[%clk 0:05:35]} 20. Qc2 {[%clk 0:08:28]}  Be6 {[%clk 0:05:24]} 21. Be3 {[%clk 0:02:01]}  Qc4 {[%clk 0:05:16]} 22. Qxc4 {[%clk 0:01:20]}  Bxc4 {[%clk 0:05:24]} 23. e5 {[%clk 0:01:21]}  Rab8 {[%clk 0:05:29]} 24. b3 {[%clk 0:01:27]}  Ba6 {[%clk 0:04:31]} 25. Bg5 {[%clk 0:01:27]}  Rfe8 {[%clk 0:05:29]} 26. Bc6 {[%clk 0:01:12]}  Rec8 {[%clk 0:04:10]} 27. Bd7 {[%clk 0:01:21]}  Rc7 {[%clk 0:02:53]} 28. e6 {[%clk 0:01:30]}  fxe6 {[%clk 0:02:53]} 29. Bxe6+ {[%clk 0:01:21]}  Kg7 {[%clk 0:02:53]} 30. Bf4 {[%clk 0:00:38]}  Nd6 {[%clk 0:01:42]} 31. Be5+ {[%clk 0:00:38]}  Kf8 {[%clk 0:01:42]} 32. Nf3 {[%clk 0:00:38]}  h6 {[%clk 0:01:42]} 33. Nh4 {[%clk 0:00:38]}  Bd3 {[%clk 0:01:42]} 34. Rd1 {[%clk 0:00:38]}  c4 {[%clk 0:01:42]} 35. Kg2 {[%clk 0:00:38]}  g5 {[%clk 0:00:31]} 36. Nf3 {[%clk 0:00:16]}  Be4 {[%clk 0:00:31]} 37. Rxd6 {[%clk 0:00:16]}  exd6 {[%clk 0:00:31]} 38. Bxd6+ {[%clk 0:00:16]}  Re7 {[%clk 0:00:31]} 39. Bxc4 {[%clk 0:00:16]}  Rd8 {[%clk 0:00:31]} 40. Bxe7+ {[%clk 0:00:16]}  Kxe7 {[%clk 0:00:31]} 41. g4 {[%clk 0:00:16]}  h5 {[%clk 0:00:31]} 42. h3 {[%clk 0:00:16]}  h4 {[%clk 0:00:31]} 43. Be2 {[%clk 0:00:16]}  Rf8 {[%clk 0:00:31]} 44. b4 {[%clk 0:00:16]}  Rf4 {[%clk 0:00:31]} 45. b5 {[%clk 0:00:29]}  Kd6 {[%clk 0:00:28]} 46. a4 {[%clk 0:00:29]}  Kc5 {[%clk 0:00:28]} 47. a5 {[%clk 0:00:29]}  Bxf3+ {[%clk 0:00:28]} 0-1


[Site "http://www.Chess.com"]

[Event "FIDE World Rapid Chess Championship 2021"]
[White "Matlakov, Maxim"]
[Black "Gumularz, Szymon"]
[WhiteFideId "4168003"]
[BlackFideId "1188062"]
[WhiteElo "2652"]
[BlackElo "2452"]
[Result "1-0"]
[Round "02"]
[TimeControl "900+10"]
[Date "2021.12.26"]
[WhiteClock "0:02:26"]
[BlackClock "0:00:53"]

1. d4 {[%clk 0:15:18]}  Nf6 {[%clk 0:15:18]} 2. c4 {[%clk 0:15:25]}  e6 {[%clk 0:15:27]} 3. Nf3 {[%clk 0:15:31]}  d5 {[%clk 0:15:35]} 4. g3 {[%clk 0:15:39]}  Bb4+ {[%clk 0:15:40]} 5. Bd2 {[%clk 0:15:47]}  Be7 {[%clk 0:15:47]} 6. Bg2 {[%clk 0:15:56]}  O-O {[%clk 0:15:45]} 7. O-O {[%clk 0:16:03]}  Nbd7 {[%clk 0:15:51]} 8. c5 {[%clk 0:16:11]}  c6 {[%clk 0:15:28]} 9. Nc3 {[%clk 0:16:15]}  Ne4 {[%clk 0:15:29]} 10. Nxe4 {[%clk 0:16:07]}  dxe4 {[%clk 0:15:28]} 11. Ne5 {[%clk 0:16:15]}  Nxe5 {[%clk 0:08:29]} 12. dxe5 {[%clk 0:16:24]}  Qd5 {[%clk 0:08:18]} 13. Bc3 {[%clk 0:14:08]}  Qxc5 {[%clk 0:08:22]} 14. Bxe4 {[%clk 0:14:11]}  Rd8 {[%clk 0:08:28]} 15. Qc2 {[%clk 0:13:49]}  h6 {[%clk 0:08:21]} 16. Rfd1 {[%clk 0:09:46]}  Bd7 {[%clk 0:08:18]} 17. Bh7+ {[%clk 0:09:18]}  Kh8 {[%clk 0:08:21]} 18. Bd3 {[%clk 0:13:49]}  Be8 {[%clk 0:04:08]} 19. Qa4 {[%clk 0:09:32]}  Bf8 {[%clk 0:04:10]} 20. h4 {[%clk 0:09:22]}  g6 {[%clk 0:02:24]} 21. h5 {[%clk 0:09:15]}  Bg7 {[%clk 0:01:53]} 22. hxg6 {[%clk 0:06:04]}  fxg6 {[%clk 0:02:02]} 23. Qf4 {[%clk 0:02:54]}  Qe7 {[%clk 0:02:02]} 24. Kg2 {[%clk 0:06:04]}  c5 {[%clk 0:02:02]} 25. Rh1 {[%clk 0:06:04]}  Bc6+ {[%clk 0:01:58]} 26. Be4 {[%clk 0:06:04]}  g5 {[%clk 0:02:02]} 27. Qg4 {[%clk 0:02:36]}  Bxe4+ {[%clk 0:02:02]} 28. Qxe4 {[%clk 0:02:36]}  Qd7 {[%clk 0:02:02]} 29. Qg6 {[%clk 0:02:36]}  Rf8 {[%clk 0:02:02]} 30. Qxg5 {[%clk 0:02:36]}  Rf5 {[%clk 0:00:18]} 31. Qe3 {[%clk 0:02:02]}  Raf8 {[%clk 0:00:18]} 32. f3 {[%clk 0:02:06]}  Kg8 {[%clk 0:00:18]} 33. Rad1 {[%clk 0:02:06]}  Qb5 {[%clk 0:00:21]} 34. Rd6 {[%clk 0:02:23]}  Qe8 {[%clk 0:00:18]} 35. Qxc5 {[%clk 0:02:06]}  Qg6 {[%clk 0:00:18]} 36. Qc4 {[%clk 0:02:06]}  Bxe5 {[%clk 0:00:18]} 37. Qxe6+ {[%clk 0:02:06]}  Qxe6 {[%clk 0:00:18]} 38. Rxe6 {[%clk 0:02:06]}  Bxc3 {[%clk 0:00:18]} 39. bxc3 {[%clk 0:02:06]}  h5 {[%clk 0:00:18]} 40. Rh6 {[%clk 0:02:06]}  Ra5 {[%clk 0:00:18]} 41. R1xh5 {[%clk 0:02:06]}  Rxa2 {[%clk 0:00:18]} 42. Rh8+ {[%clk 0:02:26]}  Kg7 {[%clk 0:00:53]} 43. R5h7+ {[%clk 0:02:26]}  Kg6 {[%clk 0:00:53]} 44. Rxf8 {[%clk 0:02:26]}  Kxh7 {[%clk 0:00:53]} 45. Rf7+ {[%clk 0:02:26]}  Kg6 {[%clk 0:00:53]} 46. Rxb7 {[%clk 0:02:26]}  Rxe2+ {[%clk 0:00:53]} 47. Kh3 {[%clk 0:02:26]}  Re3 {[%clk 0:00:53]} 48. Kg4 {[%clk 0:02:26]}  a5 {[%clk 0:00:53]} 49. Ra7 {[%clk 0:02:26]}  Re5 {[%clk 0:00:53]} 50. f4 {[%clk 0:02:26]}  Rc5 {[%clk 0:00:53]} 51. Ra6+ {[%clk 0:02:26]}  Kg7 {[%clk 0:00:53]} 52. f5 {[%clk 0:02:26]}  Kf7 {[%clk 0:00:53]} 53. Kf4 {[%clk 0:02:26]}  Rc4+ {[%clk 0:00:53]} 54. Kg5 {[%clk 0:02:26]}  Rxc3 {[%clk 0:00:53]} 55. Ra7+ {[%clk 0:02:26]}  Kf8 {[%clk 0:00:53]} 56. g4 {[%clk 0:02:26]}  Rc5 {[%clk 0:00:53]} 57. Kg6 {[%clk 0:02:26]} 1-0


[Site "http://www.Chess.com"]

[Event "FIDE World Rapid Chess Championship 2021"]
[White "Howell, David W L"]
[Black "Heberla, Bartlomiej"]
[WhiteFideId "410608"]
[BlackFideId "1115120"]
[WhiteElo "2624"]
[BlackElo "2437"]
[Result "0-1"]
[Round "02"]
[TimeControl "900+10"]
[Date "2021.12.26"]
[WhiteClock "0:00:27"]
[BlackClock "0:03:43"]

1. Nf3 {[%clk 0:15:16]}  d5 {[%clk 0:15:16]} 2. g3 {[%clk 0:15:22]}  Nf6 {[%clk 0:15:24]} 3. Bg2 {[%clk 0:15:29]}  e6 {[%clk 0:15:33]} 4. c4 {[%clk 0:14:34]}  d4 {[%clk 0:15:37]} 5. O-O {[%clk 0:14:25]}  Nc6 {[%clk 0:15:45]} 6. d3 {[%clk 0:14:22]}  Bc5 {[%clk 0:15:36]} 7. Nbd2 {[%clk 0:13:40]}  O-O {[%clk 0:15:03]} 8. Nb3 {[%clk 0:12:49]}  Be7 {[%clk 0:15:11]} 9. e3 {[%clk 0:12:55]}  dxe3 {[%clk 0:15:18]} 10. Bxe3 {[%clk 0:13:00]}  e5 {[%clk 0:15:24]} 11. h3 {[%clk 0:07:30]}  Re8 {[%clk 0:15:07]} 12. Re1 {[%clk 0:06:49]}  a5 {[%clk 0:11:56]} 13. a3 {[%clk 0:01:13]}  Bf5 {[%clk 0:10:14]} 14. d4 {[%clk 0:01:16]}  a4 {[%clk 0:10:22]} 15. Nc5 {[%clk 0:01:25]}  Bxc5 {[%clk 0:09:26]} 16. dxc5 {[%clk 0:01:33]}  Qxd1 {[%clk 0:09:34]} 17. Raxd1 {[%clk 0:01:41]}  Na5 {[%clk 0:09:41]} 18. Nd2 {[%clk 0:01:04]}  Rad8 {[%clk 0:09:41]} 19. g4 {[%clk 0:00:55]}  Bd3 {[%clk 0:09:33]} 20. Bg5 {[%clk 0:00:13]}  h6 {[%clk 0:08:54]} 21. Bxf6 {[%clk 0:00:22]}  gxf6 {[%clk 0:09:03]} 22. Be4 {[%clk 0:00:15]}  Bxc4 {[%clk 0:08:52]} 23. Nxc4 {[%clk 0:01:41]}  Nxc4 {[%clk 0:09:41]} 24. Bxb7 {[%clk 0:01:41]}  Nxb2 {[%clk 0:09:41]} 25. Rxd8 {[%clk 0:00:14]}  Rxd8 {[%clk 0:09:17]} 26. Bc6 {[%clk 0:00:13]}  Rd3 {[%clk 0:07:42]} 27. Rb1 {[%clk 0:00:19]}  Rd2 {[%clk 0:07:50]} 28. Kf1 {[%clk 0:00:18]}  Nd3 {[%clk 0:07:49]} 29. Rb8+ {[%clk 0:00:14]}  Kg7 {[%clk 0:07:58]} 30. Rd8 {[%clk 0:00:14]}  Rxf2+ {[%clk 0:07:58]} 31. Kg1 {[%clk 0:00:23]}  Rd2 {[%clk 0:07:06]} 32. Rd7 {[%clk 0:00:08]}  f5 {[%clk 0:07:58]} 33. gxf5 {[%clk 0:00:21]}  Kf6 {[%clk 0:06:19]} 34. Rxc7 {[%clk 0:00:27]}  Nxc5 {[%clk 0:06:19]} 35. Be8 {[%clk 0:00:27]}  Ne4 {[%clk 0:06:19]} 36. Rxf7+ {[%clk 0:00:27]}  Kg5 {[%clk 0:06:19]} 37. Rg7+ {[%clk 0:00:27]}  Kxf5 {[%clk 0:04:24]} 38. Bxa4 {[%clk 0:00:15]}  Ng5 {[%clk 0:04:24]} 39. Kf1 {[%clk 0:00:15]}  Kf4 {[%clk 0:04:24]} 40. Bb5 {[%clk 0:00:15]}  e4 {[%clk 0:04:24]} 41. h4 {[%clk 0:00:15]}  Nf3 {[%clk 0:04:24]} 42. Be2 {[%clk 0:00:15]}  Nd4 {[%clk 0:03:43]} 43. Rg4+ {[%clk 0:00:27]}  Ke3 {[%clk 0:03:43]} 44. Rg3+ {[%clk 0:00:27]}  Nf3 {[%clk 0:03:43]} 45. Rg2 {[%clk 0:00:27]}  Ra2 {[%clk 0:03:43]} 46. Rf2 {[%clk 0:00:27]}  Ra1+ {[%clk 0:03:43]} 0-1


[Site "http://www.Chess.com"]